Workbook

Sheet Title
I5: GAZ-SYSTEM the system that connects
A17: Simplified tariff model for National Transmission System - high-methane gas (E)
A18: Publication in fulfilment of Article 30 of TAR NC
A19: Tariff for year 2023
A21: November, 2022

Sheet Model_E
B5: Simplified Tariff Model for High-methane gas (gas E)
B6: Please fill in the orange fields only
B8: =IF(OR($I$29="",$I$29=0,$I$35="",$I$35=0),"Please enter forecasted entry and exit capacity","") -> 
B12: =IF(AND($I$24<1,$I$26<1,OR(I31="",I31=0,I33="",I33=0)),"Please enter UGS and LNG capacity",IF(AND($I$24<1,OR($I$31="",$I$31=0,$I$37="",$I$37=0)),"Please enter UGS forecasted capacity",IF(AND($I$26<1,OR($I$33="",$I$33=0)),"Please enter LNG forecasted capacity",IF(AND($I$24<1,$I$26<1,OR(I31="",I31=0,I33="",I33=0)),"Please enter UGS and LNG capacity","")))) -> 
D14: Tariff year 2022 | H14: Tariff year 2023
B17: Allowed revenue (Projection) in PLN | C17: PLN | E17: =[1]B.E!$I$72*1000 -> 2077426651 | I17: 2341339238
B19: Entry/Exit split
B20: Entry | C20: % | E20: 0.45 | I20: 0.5
B22: Exit | C22: % | E22: =1-$E$20 -> 0.55 | I22: =1-$I$20 -> 0.5
B24: UGS Discount | C24: % | E24: 0.8 | I24: 0.8
I25: 0.8
B26: LNG Disount | C26: % | E26: 1 | I26: 1
B28: Forecast of capacity sales
B29: Entry Points | C29: [kWh/h] | E29: ='[2]Stawki porównanie '!$D$33 -> 24670441 | I29: 27075018
B31: Entry UGS | C31: [kWh/h] | E31: ='[2]Stawki porównanie '!$D$34 -> 24818244 | I31: 24827520
B33: Entry LNG | C33: [kWh/h] | E33: ='[2]Stawki porównanie '!$D$35 -> 7963613 | I33: 7963614
B35: Exit Points | C35: [kWh/h] | E35: ='[2]Stawki porównanie '!$D$37 -> 57922966 | I35: 55867222
B37: Exit UGS | C37: [kWh/h] | E37: ='[2]Stawki porównanie '!$D$38 -> 14374170 | I37: 14376420
B39: Reserve prices
B40: Entry Points - high-methane | C40: [gr/kWh/h] | E40: ='[2]Stawki porównanie '!$F$12 -> 0.3598 | I40: =IFERROR($I$17*$I$20*$I$29/SUM($I$29,$I$31*(1-$I$24),$I$33*(1-$I$26))/$I$29/8760*100,0) -> 0.4170908463
E41: 0
B42: Entry Points UGS - high-methane | C42: [gr/kWh/h] | E42: ='[2]Stawki porównanie '!$F$13 -> 0.072 | I42: =IFERROR($I$17*$I$20*$I$31*(1-$I$24)/SUM($I$29,$I$31*(1-$I$24),$I$33*(1-$I$26))/$I$31/8760*100,0) -> 0.08341816926
E43: 0
B44: Entry Points LNG - high-methane | C44: [gr/kWh/h] | E44: 0 | I44: =IFERROR($I$17*$I$20*$I$33*(1-$I$26)/SUM($I$29,$I$31*(1-$I$24),$I$33*(1-$I$26))/$I$33/8760*100,0) -> 0
E45: 0
B46: Exit Points - high-methane | C46: [gr/kWh/h] | E46: ='[2]Stawki porównanie '!$F$16 -> 0.2145 | I46: =IFERROR($I$17*$I$22*$I$35/SUM($I$35,$I$37*(1-$I$24))/$I$35/8760*100,0) -> 0.2274980988
E47: 0
B48: Exit Points UGS - high-methane | C48: [gr/kWh/h] | E48: ='[2]Stawki porównanie '!$F$17 -> 0.0429 | I48: =IFERROR($I$17*$I$22*$I$37*(1-$I$24)/SUM($I$35,$I$37*(1-$I$24))/$I$37/8760*100,0) -> 0.04549961977
B53: Gas transmission simplified tariff model allows for estimation of reserve prices for firm yearly contracts only. We hereby inform that all data calculated above has been given for information only and it does not constitute an offer within the meaning of Article 66 and subsequent articles of Polish Civil Code. The above calculated reserve prices are net prices. Above prices shall be increased by the value-added tax (VAT), at the amount applicable under the relevant tax regulations. Simplified tariff model for gas transmission can only be used for estimating reserve prices for standard product for an exemplary client. Due to variety of products including interruptible products and short-term products the applicable tariff may vary from calculated. Presented reserve prices for tariff year 2023 are prices approved by the President of Energy Regulatory Office within the Tariff No. 16 for Gaseous Fuels Transmission Services. The default assumptions for tariff year 2023 are equal with the assumptions for calculating the tariffs for year 2023. | N53: nie kasowac!!
N54: komórki robocze - nie dodawać wierszy ani kolumn w tym skoroszycie!!!
N57: Discount | O57: Split | R57: Moc do kalkulacji | S57: Revenue | T57: Tariff
N58: 0 | O58: 0.05 | Q58: Entry Points | R58: =I29 -> 27075018 | S58: =$I$17*$I$20*$R$58/SUM($R$58:$R$60) -> 989244214.1 | T58: =IF(ISERROR($S$58/($I$29*8760)*100),0,$S$58/($I$29*8760)*100) -> 0.4170908463
N59: 0.1 | O59: 0.1 | Q59: Entry UGS | R59: =$I$31*(1-$I$24) -> 4965504 | S59: =$I$17*$I$20*$R$59/SUM($R$58:$R$60) -> 181425404.9 | T59: =IF(ISERROR($S$59/($I$31*8760)*100),0,$S$59/($I$31*8760)*100) -> 0.08341816926 | U59: =T59/T58 -> 0.2 | V59: =IF(U59=(1-$I$24),"ok","check") -> ok
N60: 0.2 | O60: 0.15 | Q60: Entry LNG | R60: =$I$33*(1-$I$26) -> 0 | S60: =$I$17*$I$20*$R$60/SUM($R$58:$R$60) -> 0 | T60: =IF(I33=0,0,$S$60/($I$33*8760)*100) -> 0 | U60: =T60/T58 -> 0 | V60: =IF(U60=(1-$I$26),"ok","check") -> ok
N61: 0.3 | O61: 0.2 | Q61: Exit Points | R61: =$I$35 -> 55867222 | S61: =$I$17*$I$22*$R$61/SUM($R$61:$R$62) -> 1113368563 | T61: =IF(ISERROR($S$61/($I$35*8760)*100),0,$S$61/($I$35*8760)*100) -> 0.2274980988
N62: 0.4 | O62: 0.25 | Q62: Exit UGS | R62: =$I$37*(1-$I$24) -> 2875284 | S62: =$I$17*$I$22*$R$62/SUM($R$61:$R$62) -> 57301055.98 | T62: =IF(ISERROR($S$62/($I$37*8760)*100),0,$S$62/($I$37*8760)*100) -> 0.04549961977 | U62: =T62/T61 -> 0.2 | V62: =IF(U62=(1-$I$24),"ok","check") -> ok
N63: 0.5 | O63: 0.3 | Q63: Commodity | R63: =#REF! ->  | S63: =$I$17*#REF! ->  | T63: =$S$63/#REF!*100 -> 
N64: 0.6 | O64: 0.35 | S64: =SUM(S58:S63) -> 
N65: 0.7 | O65: 0.4 | S65: =IF($S$64=$E$17,"ok.","check") -> 
N66: 0.8 | O66: 0.45
N67: 0.9 | O67: 0.5
N68: 1 | O68: 0.6
O69: 0.65
O70: 0.7
O71: 0.75
O72: 0.8
O73: 0.85
O74: 0.9
O75: 0.95
O76: 1
